Cogmind - Beta 10.1 @@@ ROGUE MODE // 2020.10.20 @ 21:00:25 Player: OccultOnion Result: Destroyed by S-27 Virus with Autogun Performance ------------- Evolutions (6) 3000 Regions Visited (7) 1400 Robots Destroyed (49) 245 Value Destroyed (1735) 1735 Prototype IDs (2) 40 Alien Tech Used (0) 0 Bonus (0) 0 TOTAL SCORE: 6420 Bonus ------- None Cogmind --------- Core Integrity 0/1150 Matter 159/300 Energy 99/100 System Corruption 1% Temperature Cool (0) Movement Core (50) Location -4/Factory Parts ------- > --- POWER (2) -------- (None) > --- PROPULSION (6) --- (None) > --- UTILITY (8) ------ Improved Target Analyzer > --- WEAPON (3) ------- (None) > --- INVENTORY (4) ---- (None) Peak State ------------ > --- POWER ------------ Light Nuclear Core > --- PROPULSION ------- Armored Huge Wheel Gravmag Array Gravmag Array > --- UTILITY ---------- Improved Thermal Converter Improved Heat Sink Large Storage Unit Advanced Weight Redist. System Targeting Computer Improved Target Analyzer Improved Heavy Armor Plating > --- WEAPON ----------- Heavy Laser Gauss Rifle Heavy Mace > --- INVENTORY -------- Improved Medium Treads Advanced Medium Treads Titanium Leg High-powered Shock Rifle Heavy Laser Disruptor Cannon Magnetic Acceleration Cannon Improved Grenade Launcher Heavy Mace [Rating: 74] Favorites ----------- Power Reinforced Deuterium Engine Engine Reinforced Deuterium Engine Power Core Light Nuclear Core Reactor Light Antimatter Reactor Propulsion Improved Hover Unit Treads Advanced Treads Leg Aluminum Leg Wheel Wheel Hover Unit Improved Hover Unit Utility Large Storage Unit Device Improved Heat Sink Storage Large Storage Unit Processor Targeting Computer Protection Improved Heavy Armor Plating Weapon Heavy Mace Energy Gun Heavy Laser Energy Cannon Heavy Particle Cannon Ballistic Gun Gauss Rifle Ballistic Cannon Gauss Cannon Launcher Improved Grenade Launcher Impact Weapon Heavy Mace Build | -11 -10 -9 -8 -7 -6 -5 -4 ------- Run | Scr Mat Mat Mat Fac Fac Fac Fac Slots Evolved 12 | . . 2 2 2 2 2 2 Power 1 | . . . . . 1 . . Propulsion 4 | . . 1 1 . . 1 1 Utility 6 | . . 1 1 1 1 1 1 Weapon 1 | . . . . 1 . . . Parts Attached 69 | 1 1 8 11 17 10 3 18 Power 4 | . . . 1 1 1 . 1 Engine 1 | . . . . 1 . . . Core 2 | . . . 1 . 1 . . Reactor 1 | . . . . . . . 1 Propulsion 25 | . . 2 4 6 5 2 6 Treads 6 | . . . 2 1 . 1 2 Leg 6 | . . 1 . . 3 . 2 Wheel 5 | . . 1 2 . 1 . 1 Hover 8 | . . . . 5 1 1 1 Flight . | . . . . . . . . Utility 21 | 1 1 4 3 6 2 1 3 Device 9 | 1 . 1 1 3 . 1 2 Storage 2 | . 1 1 . . . . . Processor 4 | . . 1 . 2 . . 1 Hackware . | . . . . . . . . Protection 6 | . . 1 2 1 2 . . Artifact . | . . . . . . . . Weapon 19 | . . 2 3 4 2 . 8 Energy Gun 6 | . . 1 1 1 1 . 2 Energy Cannon 4 | . . . 1 . . . 3 Ballistic Gun 3 | . . . 1 1 1 . . Ballistic Cannon 3 | . . 1 . 1 . . 1 Launcher 1 | . . . . . . . 1 Special Weapon . | . . . . . . . . Impact Weapon 2 | . . . . 1 . . 1 Slashing Weapon . | . . . . . . . . Piercing Weapon . | . . . . . . . . Special Melee Weapon . | . . . . . . . . Unidentified Prototypes 2 | . . . 1 . . . 1 Parts Lost 53 | . . 3 8 8 6 . 28 Power 4 | . . . 1 . 1 . 2 Propulsion 15 | . . . 3 2 2 . 8 Utility 17 | . . 1 2 5 1 . 8 Weapon 17 | . . 2 2 1 2 . 10 Highest Loss Streak 14 | . . 2 8 3 3 . 14 Average Slot Usage (%) 80 | . 100 99 88 94 77 76 50 Engine 4 | . 14 11 3 5 4 . . Core 1 | . . . 4 1 1 5 . Treads 2 | . . . 9 4 . 5 3 Leg 6 | . 28 21 7 . 3 . 3 Wheel 4 | . . 11 15 2 2 1 1 Hover 8 | . . . . 21 11 9 5 Device 11 | . 14 8 13 13 13 17 6 Storage 7 | . 14 11 9 7 6 5 4 Processor 4 | . . 4 . 1 6 5 9 Protection 6 | . . 8 10 10 5 5 1 Energy Gun 5 | . 14 9 3 5 5 5 3 Ballistic Gun 3 | . 14 4 4 1 3 5 . Ballistic Cannon 3 | . . 8 3 6 2 . . Impact Weapon 3 | . . . . 5 6 5 4 Naked Turns . | . . . . . . . . Heaviest Build 64 | 10 22 29 45 64 58 49 49 Greatest Support 66 | 20 20 10 44 44 56 65 66 Greatest Overweight (x) 7 | . 1 2 4 7 1 1 2 Average Overweight (x) . | . . 2 1 1 . . . Largest Inventory Capacity 12 | 6 10 12 10 10 10 10 10 Average Capacity 9 | 6 9 10 10 10 10 10 9 Most Carried 10 | 6 10 10 10 10 10 10 10 Average Carried 8 | 5 9 9 7 9 9 9 6 Final Capacity 10 | 6 10 10 10 10 10 10 4 Final Carried 10 | 6 10 10 10 10 10 10 . Class Distribution -------------------- 95% | Mutant Dominant Class ---------------- Mutant | -10/Materials Mutant | -9/Materials Mutant | -8/Materials Mutant | -7/Factory Mutant | -6/Factory Mutant | -5/Factory Mutant | -4/Factory Resources | -11 -10 -9 -8 -7 -6 -5 -4 ----------- Run | Scr Mat Mat Mat Fac Fac Fac Fac Matter Collected 1267 | 209 23 157 182 294 282 77 43 Remotely . | . . . . . . . . Salvage Created 1884 | 136 10 387 324 380 392 77 178 Parts 84 | 9 . 24 13 14 14 1 9 Haulers Intercepted 1 | . . . 1 . . . . Recyclers Shooed . | . . . . . . . . Parts Field Recycled . | . . . . . . . . Retrieved Matter . | . . . . . . . . Parts Self-Destructed . | . . . . . . . . Prevented . | . . . . . . . . Kills | -11 -10 -9 -8 -7 -6 -5 -4 ------- Run | Scr Mat Mat Mat Fac Fac Fac Fac Combat Hostiles Destroyed 40 | . . 10 4 8 9 1 8 Melee 1 | . . . . . . . 1 Guns 22 | . . 8 3 3 5 1 2 Cannons 14 | . . 2 1 5 3 . 3 AOE 3 | . . . . . 1 . 2 Classes Destroyed 12 | 2 1 6 1 . . . 2 Worker 1 | . . 1 . . . . . Builder 1 | . . . . . . . 1 Tunneler 2 | 2 . . . . . . . Hauler 1 | . . . 1 . . . . Recycler 2 | 1 . . 1 . . . . Operator 1 | . 1 . . . . . . Watcher 1 | . . 1 . . . . . Swarmer 13 | . . 4 . . 3 . 6 Grunt 13 | . . 2 2 6 3 . . Brawler 2 | . . 1 . 1 . . . Sentry 10 | . . 3 2 1 3 1 . Programmer 2 | . . . . . . . 2 Best Kill Streak 5 | 2 1 5 4 4 3 1 3 Combat Bots Only 5 | . . 5 3 4 3 1 3 Max Kills in Single Turn 2 | 1 1 2 1 1 1 1 1 Gunslinging . | . . . . . . . . Exploded 1 | . . . . . 1 . 1 Melee 1 | . . . . . . . 1 Uniques/NPCs Destroyed . | . . . . . . . . Combat | -11 -10 -9 -8 -7 -6 -5 -4 -------- Run | Scr Mat Mat Mat Fac Fac Fac Fac Damage Taken 7599 | . . 582 528 1121 965 451 3952 Core 1455 | . . 97 12 92 56 39 1159 Absorbed by Shields . | . . . . . . . . Core Remaining (%) 92 | 100 100 75 97 86 93 96 . Volleys Fired 187 | 10 5 43 27 40 29 10 23 Largest 3 | 2 2 2 2 3 2 2 2 Hottest 173 | 60 60 80 100 173 98 97 110 Shots Fired 322 | 20 10 83 36 71 54 20 28 Gun 230 | 20 10 71 25 27 44 20 13 Cannon 87 | . . 12 11 44 10 . 10 Launcher 5 | . . . . . . . 5 Special . | . . . . . . . . Kinetic 188 | 10 5 48 28 50 29 10 8 Thermal 89 | 10 5 29 2 5 19 10 9 Explosive 5 | . . . . . . . 5 Electromagnetic 40 | . . 6 6 16 6 . 6 Robot Hit Streak 22 | 2 2 12 8 6 10 22 11 Robot Miss Streak 4 | 4 2 2 4 4 2 . 2 Penetration Max 1 | . . . . . 1 . . Secondary Targets . | . . . . . . . . Shots Hit Robots 220 | 8 5 58 24 48 40 12 25 Core Hits 96 | 5 2 18 12 16 21 4 18 Critical Hits 9 | . . . . 6 2 . 1 Critical Kills 1 | . . . . 1 . . . Critical Parts Destroyed 4 | . . . . 3 1 . . Melee Attacks 67 | . . . . 2 20 23 22 Impact 67 | . . . . 2 20 23 22 Slashing . | . . . . . . . . Piercing . | . . . . . . . . Sneak Attacks 1 | . . . . . . . 1 Combat Hostiles . | . . . . . . . . Follow-up Attacks . | . . . . . . . . Damage Inflicted 4833 | 110 29 614 534 1144 1087 285 1030 Guns 2344 | 110 29 453 293 327 658 285 189 Cannons 1575 | . . 161 144 742 246 . 282 Explosions 738 | . . . 97 75 183 . 383 Melee 160 | . . . . . . . 160 Ramming 16 | . . . . . . . 16 Kinetic 2375 | 32 19 307 312 800 525 148 232 Thermal 1473 | 78 10 230 147 125 483 137 263 Explosive 270 | . . . . . . . 270 Electromagnetic 539 | . . 77 75 219 79 . 89 Impact 160 | . . . . . . . 160 Slashing . | . . . . . . . . Piercing . | . . . . . . . . Highest Corruption 5 | . . 2 . 5 . 3 1 Average Corruption 2 | . . 2 . 4 . 2 1 Corruption Purged . | . . . . . . . . Effects 27 | . . 5 . 21 . . 1 Message Errors 10 | . . 4 . 6 . . . Matter Fused 2 | . . . . 2 . . . Heat Flow Errors 2 | . . . . 2 . . . Energy Discharges 4 | . . . . 3 . . 1 Parts Rejected 1 | . . . . 1 . . . Data Loss (minor) 1 | . . . . 1 . . . Misfires 1 | . . . . 1 . . . Targeting Errors 4 | . . 1 . 3 . . . Weapon Failures 2 | . . . . 2 . . . Overload Shots . | . . . . . . . . Overflow Damage 289 | . . . 48 11 108 . 122 Projectiles 2 | . . . . 2 . . . Explosions 225 | . . . 48 9 108 . 60 Melee 62 | . . . . . . . 62 Knockbacks 10 | . . . 3 3 1 . 3 Impact 1 | . . . . . . . 1 Kinetic 8 | . . . 3 2 1 . 2 Secondary 1 | . . . . 1 . . . Self-Inflicted Damage 377 | . . . 67 . 196 . 114 Shots 7 | . . . 2 . 2 . 3 Rammed 4 | . . . . . . . 4 Targets Rammed 4 | . . . . . . . 4 Kicked . | . . . . . . . . Crushed . | . . . . . . . . Highest Temperature 473 | 40 20 64 48 473 26 3 24 Average Temperature 73 | 15 13 21 12 170 10 3 12 Received Heat Transfer 1236 | . . 135 165 297 222 102 315 Effects 6 | . . . . 6 . . . Shutdowns 2 | . . . . 2 . . . Matter Decay 1 | . . . . 1 . . . Short Circuit 3 | . . . . 3 . . . Siege Activations . | . . . . . . . . Robots Corrupted . | . . . . . . . . Combat Hostiles . | . . . . . . . . Parts Fried 1 | . . . . . . . 1 Impact Corruptions 3 | . . . . . . . 3 Robots Melted . | . . . . . . . . Combat Hostiles . | . . . . . . . . Parts Melted 3 | . . . . . . 2 1 Heat Transferred 2333 | 175 25 525 174 174 692 259 309 Parts Sabotaged . | . . . . . . . . Parts Stolen . | . . . . . . . . Parts Stripped . | . . . . . . . . Power Chain Reactions 3 | . . . 2 1 . . . Missiles Intercepted . | . . . . . . . . Alert | -11 -10 -9 -8 -7 -6 -5 -4 ------- Run | Scr Mat Mat Mat Fac Fac Fac Fac Peak Influence 288 | 15 29 288 159 146 207 147 197 Initial 72 | . 9 11 . 72 43 58 11 Average 82 | 7 13 130 65 85 101 74 50 Maximum Alert Level 1 | . . 1 . . 1 . . Low Security (%) 93 | 100 100 67 100 100 93 100 100 Level 1 6 | . . 32 . . 6 . . Level 2 . | . . . . . . . . Level 3 . | . . . . . . . . Level 4 . | . . . . . . . . Level 5 . | . . . . . . . . High Security . | . . . . . . . . Max Security . | . . . . . . . . Squads Dispatched 9 | . . . 1 2 1 3 2 Investigation 3 | . . . . . . 2 1 Extermination 2 | . . . . 1 . . 1 Reinforcement 4 | . . . 1 1 1 1 . Assault . | . . . . . . . . Garrison . | . . . . . . . . Intercept . | . . . . . . . . Construction Impeded . | . . . . . . . . Haulers Reinforced . | . . . . . . . . Stealth | -11 -10 -9 -8 -7 -6 -5 -4 --------- Run | Scr Mat Mat Mat Fac Fac Fac Fac Distress Signals 3 | . . 1 . . 1 . 1 Communications Jammed . | . . . . . . . . Distress Signals . | . . . . . . . . Times Spotted 101 | . 4 14 10 14 13 7 39 Peak Tracking Total 9 | . 1 5 3 5 3 5 9 Tactical Retreats 21 | . . 1 4 5 1 1 9 Traps | -11 -10 -9 -8 -7 -6 -5 -4 ------- Run | Scr Mat Mat Mat Fac Fac Fac Fac Traps Triggered 5 | . . 1 . 1 . 3 . Indirectly . | . . . . . . . . Trap Hack Attempts . | . . . . . . . . Triggered . | . . . . . . . . Disarmed . | . . . . . . . . Reprogrammed . | . . . . . . . . Reused . | . . . . . . . . Traps Extracted . | . . . . . . . . Installed . | . . . . . . . . Triggered . | . . . . . . . . Machines | -11 -10 -9 -8 -7 -6 -5 -4 ---------- Run | Scr Mat Mat Mat Fac Fac Fac Fac Machines Disabled 6 | . . . 1 1 3 . 1 Max in Single Turn 2 | . . . 1 1 2 . 1 Garrison Access 2 | . . . . . 1 1 . Machines Sabotaged . | . . . . . . . . Garrisons Compromised . | . . . . . . . . Overloaded Fab Kills . | . . . . . . . . Fab Network Shutdowns . | . . . . . . . . Hacking | -11 -10 -9 -8 -7 -6 -5 -4 --------- Run | Scr Mat Mat Mat Fac Fac Fac Fac Machines Accessed 24 | . 1 5 3 2 4 4 5 Terminals 19 | . 1 4 3 1 3 3 4 Fabricators . | . . . . . . . . Repair Stations . | . . . . . . . . Recycling Units . | . . . . . . . . Scanalyzers 1 | . . 1 . . . . . Garrison Access 4 | . . . . 1 1 1 1 Total Hacks 66 | . 6 11 10 5 8 13 13 Successful 21 | . 2 7 3 . 1 4 4 Failed 45 | . 4 4 7 5 7 9 9 Catastrophic 4 | . . . 1 . . 1 2 Database Lockouts . | . . . . . . . . Manual 37 | . 5 6 8 2 5 7 4 Terminals 52 | . 6 8 10 2 6 10 10 Fabricators . | . . . . . . . . Repair Stations . | . . . . . . . . Recycling Units . | . . . . . . . . Scanalyzers 3 | . . 3 . . . . . Garrison Access 11 | . . . . 3 2 3 3 Terminal Hacks 7 | . . 1 . . . 2 4 Record 2 | . . . . . . . 2 Robot Analysis 1 | . . . . . . 1 . Alert Level 1 | . . . . . . . 1 Unreport Threat 2 | . . 1 . . . . 1 Zone Layout 1 | . . . . . . 1 . Fabricator Hacks . | . . . . . . . . Repair Station Hacks . | . . . . . . . . Recycling Unit Hacks . | . . . . . . . . Scanalyzer 3 | . . 3 . . . . . Insert Component 1 | . . 1 . . . . . Analyze 2 | . . 2 . . . . . Garrison Access Hacks 2 | . . . . . 1 1 . Seal Access 2 | . . . . . 1 1 . Unauthorized Hacks 9 | . 2 3 3 . . 1 . Terminals 9 | . 2 3 3 . . 1 . Assimilate 1 | . 1 . . . . . . Botnet 8 | . 1 3 3 . . 1 . Fabricators . | . . . . . . . . Repair Stations . | . . . . . . . . Recycling Units . | . . . . . . . . Scanalyzers . | . . . . . . . . Garrison Access . | . . . . . . . . Data Cores Recovered . | . . . . . . . . Used . | . . . . . . . . Hacking Detections 24 | . 1 5 3 2 4 4 5 Full Trace Events 5 | . 1 . 1 . . 2 1 Feedback Events . | . . . . . . . . Feedback Blocked . | . . . . . . . . Robot Schematics Acquired . | . . . . . . . . Robots Built . | . . . . . . . . Matter . | . . . . . . . . Time . | . . . . . . . . Total Robot Build Rating . | . . . . . . . . Part Schematics Acquired 1 | . . 1 . . . . . Parts Built . | . . . . . . . . Matter . | . . . . . . . . Time . | . . . . . . . . Total Part Build Rating . | . . . . . . . . Parts Repaired . | . . . . . . . . Time . | . . . . . . . . Parts Recycled . | . . . . . . . . Recycled Matter . | . . . . . . . . Retrieved Matter . | . . . . . . . . Retrieved Components . | . . . . . . . . Parts Scanalyzed 1 | . . 1 . . . . . Part Schematics Acquired 1 | . . 1 . . . . . Parts Damaged . | . . . . . . . . Bothacking | -11 -10 -9 -8 -7 -6 -5 -4 ------------ Run | Scr Mat Mat Mat Fac Fac Fac Fac Used RIF Installer . | . . . . . . . . Robots Hacked . | . . . . . . . . Non-combat . | . . . . . . . . Combat . | . . . . . . . . Robot Hacks Applied . | . . . . . . . . Relay Couplers Released 2 | . . . . . . 2 . Machine Destruction 2 | . . . . . . 2 . Robots Rewired . | . . . . . . . . Allies Hacked . | . . . . . . . . Hacks Repelled . | . . . . . . . . Allies | -11 -10 -9 -8 -7 -6 -5 -4 -------- Run | Scr Mat Mat Mat Fac Fac Fac Fac Total Allies . | . . . . . . . . Largest Group . | . . . . . . . . Highest-Rated Group . | . . . . . . . . Highest-Rated Ally . | . . . . . . . . Total Orders . | . . . . . . . . Ally Attacks . | . . . . . . . . Total Damage . | . . . . . . . . Kills . | . . . . . . . . Allies Corrupted . | . . . . . . . . Allies Melted . | . . . . . . . . Intel | -11 -10 -9 -8 -7 -6 -5 -4 ------- Run | Scr Mat Mat Mat Fac Fac Fac Fac Robot Analysis Total 1 | . . . . . . 1 . Derelict Logs Recovered . | . . . . . . . . Drone Launches . | . . . . . . . . Drone Recoveries . | . . . . . . . . Exploration | -11 -10 -9 -8 -7 -6 -5 -4 ------------- Run | Scr Mat Mat Mat Fac Fac Fac Fac Turns Passed 4121 | 62 237 596 274 701 1067 497 687 Spaces Moved 2964 | 25 147 447 159 475 760 468 483 Core 50 | . . . . . . . 50 Treads 72 | . . . 23 1 . . 48 Legs 278 | 25 147 . . . . . 106 Wheels 1136 | . . 447 136 101 229 104 119 Hover 1428 | . . . . 373 531 364 160 Flight . | . . . . . . . . Fastest Speed 50 | 120 120 100 90 100 52 76 50 Average Speed 104 | 120 146 100 103 110 103 83 110 Slowest Speed 525 | 120 150 100 145 525 130 110 160 Overloaded Moves . | . . . . . . . . Propulsion Burnouts . | . . . . . . . . Robots Hopped . | . . . . . . . . Cave-ins Triggered . | . . . . . . . . Exploration Rate (%) 18 | 3 22 44 16 10 20 18 17 Regions Visited 7 Branch Regions . Pre-discovered Areas . | . . . . . . . . Known Exits Taken . | . . . . . . . . Unknown Exits Taken 7 | 1 1 1 1 1 1 1 . Scrap Searched . | . . . . . . . . Spaces Dug 55 | . . . . 2 18 21 14 Terrain Destroyed 157 | . . . 6 14 50 21 66 Melee 55 | . . . . 2 18 21 14 Projectile 13 | . . . . 11 2 . . AOE 89 | . . . 6 1 30 . 52 Terrain Rammed . | . . . . . . . . Walls Destroyed . | . . . . . . . . Machines Disabled . | . . . . . . . . Actions | -11 -10 -9 -8 -7 -6 -5 -4 --------- Run | Scr Mat Mat Mat Fac Fac Fac Fac Total 3577 | 40 160 525 237 586 957 508 564 Wait 140 | . . 2 23 13 98 . 4 Move 2957 | 24 146 446 158 474 759 467 483 Hop . | . . . . . . . . Pick Up 97 | 3 6 16 14 25 22 3 8 Fast Attach . | . . . . . . . . Attach 60 | 1 . 7 10 11 10 3 18 Detach 4 | . . 1 . . 2 . 1 Swap 9 | . 1 1 1 6 . . . Drop 52 | 2 2 9 4 15 17 2 1 Fire 187 | 10 5 43 27 40 29 10 23 Melee 67 | . . . . 2 20 23 22 Ram 4 | . . . . . . . 4 Kick . | . . . . . . . . Crush . | . . . . . . . . Escape Stasis . | . . . . . . . . Rewire . | . . . . . . . . Trap . | . . . . . . . . Miscellaneous . | . . . . . . . . Route ------- -11/Scrapyard -10/Materials -9/Materials (discovered 2 exits: *Mat / [*Min]) -8/Materials -7/Factory -6/Factory -5/Factory (discovered 2 exits: *Fac x2) -4/Factory History --------- Turn | Location | Event 4 | -11/Scrapyard | Discovered new exit (range 3) 63 | -11/Scrapyard | Entered Materials 278 | -10/Materials | Discovered new exit (range 16) 300 | -10/Materials | Entered another Materials area 300 | -9/Materials | Evolved 2 slots: Propulsion x1, Utility x1 324 | -9/Materials | Build established: Mutant 774 | -9/Materials | Discovered new exit (range 16) 875 | -9/Materials | Discovered new exit (range 11) 896 | -9/Materials | Entered another Materials area 896 | -8/Materials | Evolved 2 slots: Propulsion x1, Utility x1 1071 | -8/Materials | Lost 8 parts (1p3n2u2w) 1168 | -8/Materials | Discovered new exit (range 3) 1170 | -8/Materials | Entered Factory 1170 | -7/Factory | Evolved 2 slots: Utility x1, Weapon x1 1292 | -7/Factory | Lost 3 parts (1n2u) 1723 | -7/Factory | Lost 3 parts (1n2u) 1855 | -7/Factory | Discovered new exit (range 15) 1871 | -7/Factory | Entered another Factory area 1871 | -6/Factory | Evolved 2 slots: Power x1, Utility x1 2322 | -6/Factory | Lost 3 parts (1u2w) 2933 | -6/Factory | Discovered new exit (range 5) 2938 | -6/Factory | Entered another Factory area 2938 | -5/Factory | Evolved 2 slots: Propulsion x1, Utility x1 3362 | -5/Factory | Discovered new exit (range 6) 3423 | -5/Factory | Discovered new exit (range 15) 3435 | -5/Factory | Entered another Factory area 3435 | -4/Factory | Evolved 2 slots: Propulsion x1, Utility x1 3619 | -4/Factory | Lost 8 parts (1p2n3u2w) 3701 | -4/Factory | Lost 3 parts (1n1u1w) 3873 | -4/Factory | Spotted B-86 Titan 4041 | -4/Factory | Core integrity fell below 50% 4081 | -4/Factory | Core integrity fell below 20% 4096 | -4/Factory | Lost 14 parts (1p5n3u5w) 4122 | -4/Factory | Destroyed by S-27 Virus with Autogun Last Messages --------------- 04081_ S-27 Virus destroyed. 04096_ Hvy. Mace destroyed. 04099_ Slug penetrates Wall. 04101_ Slammed into S-27 Virus. 04102_ Slug penetrates S-27 Virus. 04103_ Slammed into S-27 Virus. 04103_ Disruptor Cannon permanently disabled. 04103_ Destabilizing: Short circuit. 04104_ Slammed into S-27 Virus. 04105_ S-27 Virus misfires. 04109_ Penetrated by Slug. 04109_ Targeting Computer destroyed. 04114_ Penetrated by Slug. 04116_ Slug penetrates Wall. 04116_ Penetrated by Slug. 04116_ Pressure Siphon disabled. 04117_ Broken Disruptor Cannon destroyed. 04117_ Penetrated by Slug. 04119_ Slug penetrates Wall. 04120_ Penetrated by Slug. Map ----- +----------------------------------------------------+ | | | | | | | | | | | | | | | | | | | | | | | | | ?????????????????????????????????????????????????? | | ?????????????????????????????????????????????????? | | ?????????????????????????????????????????????????? | | ?????????????????????????????????????????????????? | | ????????????????????????########################## | | ????????????????????????? % | | ???????????????????????????# ^ ##"######## | | ???????????????????????????# u # #?# | | ???????????????????######### / ! #?# | | ???????????????????# # ! #?# | | ???????????????????# #########?# | | ???????????????????# """" ###########/ | | ???????????????????# "F " # | | ???????????????????# @ ** # | | ???????????????????### ** # | | ?????????????????????# """" ** # " """" | | ?????????????????????# """% # " """" | | ?????????????????????+ "%%% [#= "" """" | | ?????????????????????# % =+ = "" | | ?????????????????????# %""" %#[ "" " """" | | ?????????????????????# """" # """" """" | | ?????????????????????# !/s """" # """ """? | | ?????????????????????# !/ # ? | | ?????????????????????# // """" # ? | | ?????????????????????# %""" ############ | | ?????????????????????# s """" #??????????? | | ?????????????????????# #??????????? | | ?????????????????????# """" """" #??????????? | | ?????????????????????# """" """" ###????????? | | ?????????????????????# """" """" #????????? | | ?????????????????????# #????????? | | ?????????????????????# """" """" ""##???????? | | ??????????????????#### """" """" # #???????? | | ??????????????????? """" "%"% ############ | | ?????????????????? # | | ?????????????????? # | | ????????????????? " """"" | | ????????????????? " # """"" | +----------------------------------------------------+ Best States ------------- Heat Dissipation 57 Energy Generation 21 Energy Capacity 290 Matter Stores 300 Matter Capacity 300 Sight Range 16 Terrain Scan Range 16 Terrain Scan Density 60 Additional Mass Support 9 Armor Coverage 600 Resistance: KI 20 Propulsion Shielding 66 Thermal Conversion 60 Evasion (%) 54 Targeting Accuracy 5 Target Analysis 6 Recoil Reduction 4 Item Schematics ----------------- Lgt. Nuclear Core | -9/Materials | Scanalyzed Robot Schematics ------------------ None Fabricated ------------ Nothing Alien Tech Used ----------------- None Achievements -------------- None Challenges ------------ None Game ------ Seed TransmissionMiniCloak Manual? 0 Play Time 00:43:20 Cumulative 72.4 hours Start 2020.10.20 @ 20:16:26 End 2020.10.20 @ 21:00:25 Sessions 1 Manual Loads 0 Difficulty Rogue Special Mode None Game No. 160 Rogue 160 Adventurer 0 Explorer 0 Win Type - Total 0 Types 0/0/0/0/0/0/0/0/0 Lore% 32 Gallery% 51 Achievement% 33 Wizard Run 0 Options --------- ASCII 0 Keyboard 1 Movement Numpad Keybinds 0 Fullscreen 2 Font 18/SmallcapsGlow Map View 76x50 Tactical HUD 1 Map Filters NONE Filters NONE Steam 1 RUN: 75c3bbe4-d932-41b6-b809-412608453df6